[Event "*** Titled Tuesday Blitz"]
[Site "Chess.com"]
[Date "2020.04.14"]
[Round "6"]
[White "vanea_03"]
[Black "MasterKroket"]
[Result "1-0"]
[WhiteElo "2617"]
[BlackElo "2444"]
[TimeControl "180+1"]
[EndTime "11:04:20 PDT"]
[Termination "vanea_03 won on time"]

1. Nf3 {[%clk 0:03:00.9]} 1... Nf6 {[%clk 0:02:59.3]} 2. g3 {[%clk 0:03:00.7]}
2... b6 {[%clk 0:02:59.1]} 3. Bg2 {[%clk 0:02:59.9]} 3... Bb7 {[%clk 0:02:59.8]}
4. O-O {[%clk 0:03:00.5]} 4... e6 {[%clk 0:03:00.2]} 5. c4 {[%clk 0:03:00.8]}
5... c5 {[%clk 0:03:00.2]} 6. Nc3 {[%clk 0:03:01]} 6... Be7 {[%clk 0:03:00.3]}
7. Re1 {[%clk 0:03:00.8]} 7... Ne4 {[%clk 0:02:53.4]} 8. Nxe4 {[%clk 0:02:53.6]}
8... Bxe4 {[%clk 0:02:53]} 9. d4 {[%clk 0:02:54.2]} 9... O-O {[%clk 0:02:47.1]}
10. d5 {[%clk 0:02:36.7]} 10... exd5 {[%clk 0:02:46.2]} 11. cxd5 {[%clk
0:02:37.6]} 11... d6 {[%clk 0:02:45]} 12. Nd2 {[%clk 0:02:10.8]} 12... Bxg2
{[%clk 0:02:44.8]} 13. Kxg2 {[%clk 0:02:11.7]} 13... Bf6 {[%clk 0:02:45.5]} 14.
a4 {[%clk 0:02:05.4]} 14... Nd7 {[%clk 0:02:43.9]} 15. e4 {[%clk 0:02:02]} 15...
a6 {[%clk 0:02:41.9]} 16. f4 {[%clk 0:02:00.7]} 16... Re8 {[%clk 0:02:41.6]} 17.
Nc4 {[%clk 0:01:55.3]} 17... Qc7 {[%clk 0:02:34.9]} 18. Qb3 {[%clk 0:01:51.4]}
18... Rab8 {[%clk 0:02:30.5]} 19. Bd2 {[%clk 0:01:37.3]} 19... b5 {[%clk
0:02:27.6]} 20. axb5 {[%clk 0:01:38.2]} 20... axb5 {[%clk 0:02:27.4]} 21. Na5
{[%clk 0:01:38.6]} 21... c4 {[%clk 0:02:24.6]} 22. Qf3 {[%clk 0:01:39.2]} 22...
Bxb2 {[%clk 0:02:21.1]} 23. Ra2 {[%clk 0:01:20.2]} 23... c3 {[%clk 0:02:16.5]}
24. Rxb2 {[%clk 0:01:01.8]} 24... cxd2 {[%clk 0:02:10.5]} 25. Ra1 {[%clk
0:00:57.6]} 25... Ra8 {[%clk 0:02:07.3]} 26. Rba2 {[%clk 0:00:55.5]} 26... Nc5
{[%clk 0:01:58.4]} 27. Nc6 {[%clk 0:00:42.1]} 27... Rxa2 {[%clk 0:01:57.2]} 28.
Rxa2 {[%clk 0:00:43]} 28... f5 {[%clk 0:01:39.9]} 29. e5 {[%clk 0:00:34.5]}
29... dxe5 {[%clk 0:01:32.6]} 30. fxe5 {[%clk 0:00:35.4]} 30... Ne4 {[%clk
0:01:28.2]} 31. Ra7 {[%clk 0:00:26]} 31... Qb6 {[%clk 0:01:12.8]} 32. Ra1 {[%clk
0:00:09.2]} 32... g6 {[%clk 0:00:34.8]} 33. g4 {[%clk 0:00:09.2]} 33... Ng5
{[%clk 0:00:16.1]} 34. Qf4 {[%clk 0:00:06.5]} 34... Qc5 {[%clk 0:00:11.9]} 35.
Qxd2 {[%clk 0:00:06.4]} 35... Ne4 {[%clk 0:00:08.9]} 36. Qe2 {[%clk 0:00:02.4]}
36... Qxd5 {[%clk 0:00:08.9]} 37. Nb4 {[%clk 0:00:02.8]} 37... Qb7 {[%clk
0:00:08.1]} 38. Kh3 {[%clk 0:00:02.8]} 38... Rc8 {[%clk 0:00:07.9]} 39. gxf5
{[%clk 0:00:02.9]} 39... Rc3+ {[%clk 0:00:07.8]} 40. Nd3 {[%clk 0:00:03.5]}
40... Rxd3+ {[%clk 0:00:06.4]} 41. Kg4 {[%clk 0:00:04]} 41... Qe7 {[%clk
0:00:04.2]} 42. Qxe4 {[%clk 0:00:02.5]} 42... Rc3 {[%clk 0:00:04.5]} 43. f6
{[%clk 0:00:02.3]} 43... Rc4 {[%clk 0:00:04.9]} 44. Qxc4+ {[%clk 0:00:02.3]}
44... bxc4 {[%clk 0:00:03.8]} 45. fxe7 {[%clk 0:00:03.2]} 45... Kf7 {[%clk
0:00:04]} 46. Rc1 {[%clk 0:00:04.1]} 46... Kxe7 {[%clk 0:00:04]} 47. Rxc4 {[%clk
0:00:05]} 47... Ke6 {[%clk 0:00:04.9]} 48. Ra4 {[%clk 0:00:05.5]} 48... Kxe5
{[%clk 0:00:05.5]} 49. Kg5 {[%clk 0:00:06.2]} 1-0

[Event "*** Titled Tuesday Blitz"]
[Site "Chess.com"]
[Date "2020.04.14"]
[Round "6"]
[White "Superfelix"]
[Black "kleinebeer98"]
[Result "0-1"]
[WhiteElo "2540"]
[BlackElo "2715"]
[TimeControl "180+1"]
[EndTime "11:04:21 PDT"]
[Termination "kleinebeer98 won by checkmate"]

1. e4 {[%clk 0:03:00.9]} 1... e5 {[%clk 0:02:58.7]} 2. Nf3 {[%clk 0:03:00.9]}
2... Nf6 {[%clk 0:02:58.4]} 3. d4 {[%clk 0:02:59.8]} 3... Nc6 {[%clk 0:02:55.4]}
4. dxe5 {[%clk 0:02:58.9]} 4... Nxe4 {[%clk 0:02:54.7]} 5. Qd5 {[%clk
0:02:52.9]} 5... Nc5 {[%clk 0:02:52.6]} 6. Be3 {[%clk 0:02:51]} 6... Ne6 {[%clk
0:02:45.8]} 7. Nc3 {[%clk 0:02:50.2]} 7... Bb4 {[%clk 0:02:40.2]} 8. Bd3 {[%clk
0:02:48]} 8... b6 {[%clk 0:02:27.5]} 9. O-O {[%clk 0:02:42.7]} 9... Bxc3 {[%clk
0:02:25.6]} 10. bxc3 {[%clk 0:02:41.9]} 10... Bb7 {[%clk 0:02:25.3]} 11. Rfd1
{[%clk 0:02:34]} 11... Na5 {[%clk 0:02:22.4]} 12. Qb5 {[%clk 0:02:31.2]} 12...
c5 {[%clk 0:02:16.1]} 13. Be2 {[%clk 0:02:20]} 13... Bc6 {[%clk 0:02:04.6]} 14.
Qd3 {[%clk 0:02:19.6]} 14... O-O {[%clk 0:02:04.8]} 15. c4 {[%clk 0:02:11.1]}
15... Re8 {[%clk 0:01:58.3]} 16. Rd2 {[%clk 0:02:04.4]} 16... Qe7 {[%clk
0:01:52]} 17. Rad1 {[%clk 0:02:03.6]} 17... Rad8 {[%clk 0:01:49.8]} 18. c3
{[%clk 0:02:02.8]} 18... Bb7 {[%clk 0:01:45.2]} 19. Qf5 {[%clk 0:02:00.8]} 19...
h6 {[%clk 0:01:20]} 20. h4 {[%clk 0:01:48.1]} 20... Bxf3 {[%clk 0:01:18]} 21.
Qxf3 {[%clk 0:01:40.2]} 21... Qxh4 {[%clk 0:01:17.4]} 22. Rxd7 {[%clk 0:01:40]}
22... Rf8 {[%clk 0:01:05]} 23. g3 {[%clk 0:01:36.6]} 23... Qh3 {[%clk
0:00:50.7]} 24. Bf1 {[%clk 0:01:28.3]} 24... Ng5 {[%clk 0:00:51]} 25. Bxg5
{[%clk 0:01:17.1]} 25... Qxd7 {[%clk 0:00:51.1]} 26. Rxd7 {[%clk 0:01:16.6]}
26... Rxd7 {[%clk 0:00:51.3]} 27. Be3 {[%clk 0:01:10.1]} 27... Rfd8 {[%clk
0:00:48.6]} 28. Be2 {[%clk 0:01:06.4]} 28... Re8 {[%clk 0:00:46.4]} 29. Qf5
{[%clk 0:01:03.2]} 29... Rde7 {[%clk 0:00:45.9]} 30. f4 {[%clk 0:00:50.5]} 30...
Nc6 {[%clk 0:00:44.1]} 31. Bd3 {[%clk 0:00:48.3]} 31... g6 {[%clk 0:00:42.6]}
32. Qe4 {[%clk 0:00:46.2]} 32... Nxe5 {[%clk 0:00:42.2]} 33. fxe5 {[%clk
0:00:39.5]} 33... Rxe5 {[%clk 0:00:43.1]} 34. Qb7 {[%clk 0:00:33.2]} 34... Rxe3
{[%clk 0:00:42.2]} 35. Bf1 {[%clk 0:00:32.9]} 35... Rxg3+ {[%clk 0:00:41.9]} 36.
Kf2 {[%clk 0:00:32.6]} 36... Rxc3 {[%clk 0:00:41.2]} 37. Qxa7 {[%clk 0:00:29.1]}
37... Rc2+ {[%clk 0:00:41.4]} 38. Kf3 {[%clk 0:00:28.7]} 38... Re1 {[%clk
0:00:35.8]} 39. Bd3 {[%clk 0:00:21.5]} 39... Rc3 {[%clk 0:00:35.8]} 40. Qb8+
{[%clk 0:00:20.5]} 40... Kh7 {[%clk 0:00:31.9]} 41. Qc7 {[%clk 0:00:15.4]} 41...
Kg7 {[%clk 0:00:12.1]} 42. Kf2 {[%clk 0:00:15.4]} 42... Re6 {[%clk 0:00:10.1]}
43. Be2 {[%clk 0:00:14.5]} 43... Rc2 {[%clk 0:00:09.3]} 44. Kf3 {[%clk
0:00:13.9]} 44... Rcxe2 {[%clk 0:00:09.1]} 45. a4 {[%clk 0:00:13.7]} 45... R6e3+
{[%clk 0:00:09.1]} 46. Kf4 {[%clk 0:00:13.9]} 46... g5+ {[%clk 0:00:08.1]} 47.
Kg4 {[%clk 0:00:13.5]} 47... Kg6 {[%clk 0:00:05]} 48. Qc6+ {[%clk 0:00:09.6]}
48... Re6 {[%clk 0:00:05.1]} 49. Qa8 {[%clk 0:00:08.3]} 49... h5+ {[%clk
0:00:03.1]} 50. Kf3 {[%clk 0:00:08.2]} 50... R6e3# {[%clk 0:00:03.1]} 0-1

[Event "*** Titled Tuesday Blitz"]
[Site "Chess.com"]
[Date "2020.04.14"]
[Round "6"]
[White "BakaPG"]
[Black "Eltaj_Safarli"]
[Result "0-1"]
[WhiteElo "2726"]
[BlackElo "3058"]
[TimeControl "180+1"]
[EndTime "11:04:22 PDT"]
[Termination "Eltaj_Safarli won by resignation"]

1. e4 {[%clk 0:03:00.9]} 1... e5 {[%clk 0:02:59.5]} 2. Nf3 {[%clk 0:03:00.4]}
2... Nc6 {[%clk 0:02:59.7]} 3. Bb5 {[%clk 0:02:58.9]} 3... a6 {[%clk 0:03:00]}
4. Ba4 {[%clk 0:02:58.6]} 4... d6 {[%clk 0:03:00.9]} 5. c3 {[%clk 0:02:57.6]}
5... Bd7 {[%clk 0:03:00.8]} 6. O-O {[%clk 0:02:57]} 6... g6 {[%clk 0:03:01.2]}
7. d4 {[%clk 0:02:56.1]} 7... Bg7 {[%clk 0:03:01.4]} 8. d5 {[%clk 0:02:56.5]}
8... Nce7 {[%clk 0:03:00.5]} 9. Bxd7+ {[%clk 0:02:54.9]} 9... Qxd7 {[%clk
0:03:01.4]} 10. c4 {[%clk 0:02:55.2]} 10... h6 {[%clk 0:03:00.9]} 11. Nc3 {[%clk
0:02:54.7]} 11... f5 {[%clk 0:03:00.4]} 12. Re1 {[%clk 0:02:45.2]} 12... Nf6
{[%clk 0:02:59.2]} 13. Rb1 {[%clk 0:02:36.1]} 13... O-O {[%clk 0:02:52]} 14. b4
{[%clk 0:02:34.2]} 14... g5 {[%clk 0:02:40.7]} 15. exf5 {[%clk 0:02:17.9]} 15...
Nxf5 {[%clk 0:02:41.6]} 16. Ne4 {[%clk 0:02:16]} 16... Nxe4 {[%clk 0:02:11.1]}
17. Rxe4 {[%clk 0:02:15.2]} 17... Rf7 {[%clk 0:02:12]} 18. h3 {[%clk 0:02:10.5]}
18... Raf8 {[%clk 0:02:12.2]} 19. Rb3 {[%clk 0:02:05.2]} 19... b5 {[%clk
0:01:36.2]} 20. c5 {[%clk 0:02:02.4]} 20... Nd4 {[%clk 0:01:36.4]} 21. Nxd4
{[%clk 0:01:57.8]} 21... exd4 {[%clk 0:01:37.3]} 22. f3 {[%clk 0:01:40.1]} 22...
dxc5 {[%clk 0:01:34.1]} 23. bxc5 {[%clk 0:01:37.3]} 23... Qxd5 {[%clk
0:01:33.9]} 24. Qd3 {[%clk 0:01:28.2]} 24... Rd8 {[%clk 0:00:51.2]} 25. Ba3
{[%clk 0:01:24.6]} 25... c6 {[%clk 0:00:47.9]} 26. Rb2 {[%clk 0:01:20.9]} 26...
a5 {[%clk 0:00:44.5]} 27. Rbe2 {[%clk 0:01:19.9]} 27... b4 {[%clk 0:00:41.3]}
28. Re8+ {[%clk 0:01:17.4]} 28... Rxe8 {[%clk 0:00:41.5]} 29. Rxe8+ {[%clk
0:01:17.3]} 29... Rf8 {[%clk 0:00:42.4]} 30. Rxf8+ {[%clk 0:01:16.7]} 30... Kxf8
{[%clk 0:00:43.3]} 31. Bb2 {[%clk 0:01:13.4]} 31... Qxc5 {[%clk 0:00:35.2]} 32.
a4 {[%clk 0:01:04.3]} 32... Qd5 {[%clk 0:00:31.8]} 33. Kf1 {[%clk 0:01:00.3]}
33... Kf7 {[%clk 0:00:28.5]} 34. Qa6 {[%clk 0:00:55.8]} 34... Kg6 {[%clk
0:00:27.5]} 35. h4 {[%clk 0:00:49]} 35... gxh4 {[%clk 0:00:25.5]} 36. Qc8 {[%clk
0:00:49.1]} 36... Qf5 {[%clk 0:00:18.6]} 37. Qe8+ {[%clk 0:00:46.9]} 37... Kh7
{[%clk 0:00:18]} 38. Qxc6 {[%clk 0:00:44.2]} 38... Qb1+ {[%clk 0:00:17.3]} 39.
Bc1 {[%clk 0:00:42.7]} 39... Qd3+ {[%clk 0:00:15.3]} 40. Kg1 {[%clk 0:00:41.9]}
40... b3 {[%clk 0:00:14]} 41. Kh2 {[%clk 0:00:38]} 41... Qc2 {[%clk 0:00:13.7]}
42. Qe6 {[%clk 0:00:34.9]} 42... Qxc1 {[%clk 0:00:08.3]} 43. Qe4+ {[%clk
0:00:32.3]} 43... Kg8 {[%clk 0:00:08.5]} 44. Qe8+ {[%clk 0:00:32.3]} 44... Bf8
{[%clk 0:00:08.7]} 45. Qg6+ {[%clk 0:00:31.6]} 45... Kh8 {[%clk 0:00:08.8]} 46.
Qf6+ {[%clk 0:00:31]} 46... Bg7 {[%clk 0:00:09.2]} 47. Qd8+ {[%clk 0:00:25.4]}
47... Kh7 {[%clk 0:00:09.7]} 48. Qxa5 {[%clk 0:00:21.2]} 48... Qf4+ {[%clk
0:00:07]} 49. Kh1 {[%clk 0:00:21.3]} 49... b2 {[%clk 0:00:07.5]} 50. Qb5 {[%clk
0:00:18.9]} 50... Qc1+ {[%clk 0:00:07.4]} 51. Kh2 {[%clk 0:00:19.2]} 51... b1=Q
{[%clk 0:00:08.3]} 0-1

[Event "*** Titled Tuesday Blitz"]
[Site "Chess.com"]
[Date "2020.04.14"]
[Round "6"]
[White "Gaguna"]
[Black "vladislavkovalev"]
[Result "0-1"]
[WhiteElo "2686"]
[BlackElo "2886"]
[TimeControl "180+1"]
[EndTime "11:04:22 PDT"]
[Termination "vladislavkovalev won by resignation"]

1. d4 {[%clk 0:03:00.9]} 1... Nf6 {[%clk 0:03:00.3]} 2. Nf3 {[%clk 0:02:59.7]}
2... g6 {[%clk 0:03:00.8]} 3. c4 {[%clk 0:02:59.2]} 3... Bg7 {[%clk 0:03:01.3]}
4. g3 {[%clk 0:02:59.7]} 4... O-O {[%clk 0:03:01.9]} 5. Bg2 {[%clk 0:03:00.1]}
5... d6 {[%clk 0:03:00]} 6. O-O {[%clk 0:03:00.4]} 6... Nc6 {[%clk 0:02:58.1]}
7. Nc3 {[%clk 0:02:59.3]} 7... e5 {[%clk 0:02:58.8]} 8. d5 {[%clk 0:02:58.4]}
8... Nb8 {[%clk 0:02:58.8]} 9. e4 {[%clk 0:02:58.5]} 9... a5 {[%clk 0:02:57.9]}
10. Ne1 {[%clk 0:02:58.6]} 10... Na6 {[%clk 0:02:58.5]} 11. Nd3 {[%clk
0:02:58.9]} 11... Nd7 {[%clk 0:02:58.8]} 12. f4 {[%clk 0:02:56.5]} 12... exf4
{[%clk 0:02:56.9]} 13. gxf4 {[%clk 0:02:53.8]} 13... f5 {[%clk 0:02:27.2]} 14.
exf5 {[%clk 0:02:52.4]} 14... Rxf5 {[%clk 0:02:28.1]} 15. Bh3 {[%clk 0:02:52]}
15... Nb6 {[%clk 0:02:28.6]} 16. Bxf5 {[%clk 0:02:36.8]} 16... Bxf5 {[%clk
0:02:29.5]} 17. Nf2 {[%clk 0:02:28.7]} 17... Nxc4 {[%clk 0:02:27.6]} 18. Nce4
{[%clk 0:02:25.5]} 18... Qd7 {[%clk 0:02:08.5]} 19. Ng3 {[%clk 0:02:23.4]} 19...
Nb4 {[%clk 0:01:57.6]} 20. Nxf5 {[%clk 0:02:19]} 20... Qxf5 {[%clk 0:01:58.5]}
21. Qg4 {[%clk 0:02:13.8]} 21... Qxd5 {[%clk 0:01:46.5]} 22. Rd1 {[%clk
0:02:10.5]} 22... Qf7 {[%clk 0:01:35.1]} 23. a3 {[%clk 0:02:02.3]} 23... Nc2
{[%clk 0:01:33.4]} 24. Rb1 {[%clk 0:02:01.5]} 24... N2e3 {[%clk 0:01:33.6]} 25.
Bxe3 {[%clk 0:02:00.9]} 25... Nxe3 {[%clk 0:01:34.5]} 26. Qf3 {[%clk 0:02:00.6]}
26... Nxd1 {[%clk 0:01:34.8]} 27. Qxb7 {[%clk 0:02:00]} 27... Rf8 {[%clk
0:01:30.4]} 28. Rxd1 {[%clk 0:01:58.6]} 28... Qxf4 {[%clk 0:01:30.4]} 29. Qg2
{[%clk 0:01:55.5]} 29... Qe3 {[%clk 0:01:01.1]} 30. Rd3 {[%clk 0:01:45.5]} 30...
Qc1+ {[%clk 0:00:40.6]} 31. Rd1 {[%clk 0:01:41.7]} 31... Qxb2 {[%clk 0:00:37.8]}
32. Nd3 {[%clk 0:01:32.8]} 32... Qxa3 {[%clk 0:00:34.4]} 33. Qd5+ {[%clk
0:01:27.2]} 33... Kh8 {[%clk 0:00:34.7]} 34. Rf1 {[%clk 0:01:27.3]} 34... Rxf1+
{[%clk 0:00:30.5]} 35. Kxf1 {[%clk 0:01:27.2]} 35... Qa1+ {[%clk 0:00:30.6]} 36.
Ke2 {[%clk 0:01:25.8]} 36... Qf6 {[%clk 0:00:20.5]} 37. Qa8+ {[%clk 0:01:23.7]}
37... Bf8 {[%clk 0:00:20.7]} 38. Qxa5 {[%clk 0:01:24]} 38... Qe6+ {[%clk
0:00:20.8]} 39. Kd2 {[%clk 0:01:22]} 39... Bh6+ {[%clk 0:00:20.4]} 40. Kd1
{[%clk 0:01:19.2]} 40... Qb3+ {[%clk 0:00:18.6]} 41. Ke1 {[%clk 0:01:11.9]}
41... Qb1+ {[%clk 0:00:18.4]} 42. Kf2 {[%clk 0:01:09.6]} 42... Qxd3 {[%clk
0:00:18.4]} 43. Qa1+ {[%clk 0:00:59.8]} 43... Kg8 {[%clk 0:00:15.5]} 44. Qa2+
{[%clk 0:00:59.2]} 44... Kf8 {[%clk 0:00:12]} 45. Qa8+ {[%clk 0:00:56.9]} 45...
Ke7 {[%clk 0:00:12]} 46. Qg8 {[%clk 0:00:55]} 46... Qf5+ {[%clk 0:00:12.1]} 47.
Kg2 {[%clk 0:00:52.3]} 47... Qf7 {[%clk 0:00:09.5]} 48. Qc8 {[%clk 0:00:47.1]}
48... Kf6 {[%clk 0:00:08]} 49. Qh3 {[%clk 0:00:44.6]} 49... Kg7 {[%clk
0:00:07.6]} 50. Qc3+ {[%clk 0:00:42.9]} 50... Kg8 {[%clk 0:00:08.2]} 51. Qa3
{[%clk 0:00:39.4]} 51... Bf4 {[%clk 0:00:08.5]} 52. Qa8+ {[%clk 0:00:38.7]}
52... Kg7 {[%clk 0:00:09.1]} 53. Qa1+ {[%clk 0:00:37.8]} 53... Be5 {[%clk
0:00:10]} 54. Qd1 {[%clk 0:00:35.9]} 54... Qf4 {[%clk 0:00:09.7]} 55. h3 {[%clk
0:00:32.2]} 55... Qh2+ {[%clk 0:00:09]} 56. Kf3 {[%clk 0:00:31.5]} 56... Qxh3+
{[%clk 0:00:09.6]} 57. Ke4 {[%clk 0:00:31.4]} 57... Qe6 {[%clk 0:00:09.6]} 58.
Qc2 {[%clk 0:00:25.7]} 58... Qf5+ {[%clk 0:00:09.4]} 59. Kd5 {[%clk 0:00:25.9]}
59... Qxc2 {[%clk 0:00:09.5]} 0-1

[Event "*** Titled Tuesday Blitz"]
[Site "Chess.com"]
[Date "2020.04.14"]
[Round "6"]
[White "Willychess95"]
[Black "ENEASZ"]
[Result "1-0"]
[WhiteElo "2649"]
[BlackElo "2495"]
[TimeControl "180+1"]
[EndTime "11:04:22 PDT"]
[Termination "Willychess95 won on time"]

1. e4 {[%clk 0:03:00]} 1... d6 {[%clk 0:02:59.4]} 2. d4 {[%clk 0:02:59.7]} 2...
Nf6 {[%clk 0:02:59.5]} 3. Nc3 {[%clk 0:03:00.6]} 3... e5 {[%clk 0:02:59.6]} 4.
Nf3 {[%clk 0:03:00.2]} 4... Nbd7 {[%clk 0:02:58.9]} 5. Bc4 {[%clk 0:02:59.5]}
5... Be7 {[%clk 0:02:58.7]} 6. O-O {[%clk 0:02:59]} 6... O-O {[%clk 0:02:58]} 7.
h3 {[%clk 0:02:58.5]} 7... c6 {[%clk 0:02:58]} 8. a4 {[%clk 0:02:58]} 8... b6
{[%clk 0:02:58.4]} 9. Re1 {[%clk 0:02:58]} 9... Bb7 {[%clk 0:02:55.5]} 10. Bg5
{[%clk 0:02:53.6]} 10... h6 {[%clk 0:02:44.3]} 11. Be3 {[%clk 0:02:50.5]} 11...
Re8 {[%clk 0:02:12.8]} 12. Qd2 {[%clk 0:02:46.4]} 12... Bf8 {[%clk 0:02:07.1]}
13. Rad1 {[%clk 0:02:45.3]} 13... Qc7 {[%clk 0:02:03.1]} 14. Bb3 {[%clk
0:02:41.2]} 14... a6 {[%clk 0:01:58.4]} 15. Qe2 {[%clk 0:02:29.6]} 15... b5
{[%clk 0:01:51.2]} 16. axb5 {[%clk 0:02:29.4]} 16... axb5 {[%clk 0:01:52.1]} 17.
d5 {[%clk 0:02:28.1]} 17... b4 {[%clk 0:01:48.6]} 18. dxc6 {[%clk 0:02:27.8]}
18... Bxc6 {[%clk 0:01:45.6]} 19. Nb5 {[%clk 0:02:17.5]} 19... Qb8 {[%clk
0:01:41.9]} 20. Qc4 {[%clk 0:01:38]} 20... d5 {[%clk 0:00:32.7]} 21. Qxc6 {[%clk
0:01:36.7]} 21... Rc8 {[%clk 0:00:32.2]} 22. exd5 {[%clk 0:01:22.9]} 22... Rxc6
{[%clk 0:00:30.9]} 23. dxc6 {[%clk 0:01:23.8]} 23... Qxb5 {[%clk 0:00:21.2]} 24.
cxd7 {[%clk 0:01:23.5]} 24... Nxd7 {[%clk 0:00:22.1]} 25. Rd5 {[%clk 0:01:21.2]}
25... Qb7 {[%clk 0:00:21.9]} 26. Red1 {[%clk 0:01:18.9]} 26... Nf6 {[%clk
0:00:17.9]} 27. R5d2 {[%clk 0:01:05.8]} 27... Re8 {[%clk 0:00:15.8]} 28. Rd8
{[%clk 0:01:00.4]} 28... Qe7 {[%clk 0:00:12.4]} 29. R8d2 {[%clk 0:00:51.8]}
29... Kh7 {[%clk 0:00:12]} 30. Ra1 {[%clk 0:00:51.2]} 30... Rc8 {[%clk
0:00:08.4]} 31. Bb6 {[%clk 0:00:42.8]} 31... e4 {[%clk 0:00:04.2]} 32. Ra7
{[%clk 0:00:32.4]} 32... Qe8 {[%clk 0:00:04.5]} 33. Nd4 {[%clk 0:00:26.5]} 33...
Qe5 {[%clk 0:00:02.9]} 34. Rxf7 {[%clk 0:00:24.3]} 34... Bd6 {[%clk 0:00:02.1]}
35. f4 {[%clk 0:00:16.7]} 35... exf3 {[%clk 0:00:01.3]} 36. Nxf3 {[%clk
0:00:16.4]} 36... Bc5+ {[%clk 0:00:01.8]} 37. Bxc5 {[%clk 0:00:16.2]} 37...
Qxc5+ {[%clk 0:00:02.7]} 38. Kh1 {[%clk 0:00:16.7]} 38... Rc7 {[%clk 0:00:03]}
39. Rxc7 {[%clk 0:00:16.3]} 39... Qxc7 {[%clk 0:00:03.9]} 40. Re2 {[%clk
0:00:15.8]} 40... Qf4 {[%clk 0:00:03.8]} 41. Re1 {[%clk 0:00:15.2]} 41... Ne4
{[%clk 0:00:03.9]} 42. c3 {[%clk 0:00:13]} 42... Ng3+ {[%clk 0:00:02.1]} 43. Kg1
{[%clk 0:00:12.5]} 43... bxc3 {[%clk 0:00:02.6]} 44. bxc3 {[%clk 0:00:11.9]}
44... Qc7 {[%clk 0:00:01.2]} 45. Re3 {[%clk 0:00:09.2]} 1-0

[Event "*** Titled Tuesday Blitz"]
[Site "Chess.com"]
[Date "2020.04.14"]
[Round "6"]
[White "tylityli"]
[Black "anon219"]
[Result "0-1"]
[WhiteElo "2152"]
[BlackElo "2797"]
[TimeControl "180+1"]
[EndTime "11:04:22 PDT"]
[Termination "anon219 won on time"]

1. e4 {[%clk 0:03:00.9]} 1... c5 {[%clk 0:02:55.7]} 2. Nf3 {[%clk 0:03:01.2]}
2... a6 {[%clk 0:02:56]} 3. d4 {[%clk 0:03:01.3]} 3... cxd4 {[%clk 0:02:56.9]}
4. Nxd4 {[%clk 0:03:01.8]} 4... Nf6 {[%clk 0:02:57.6]} 5. Nc3 {[%clk 0:03:02]}
5... e5 {[%clk 0:02:58.3]} 6. Nb3 {[%clk 0:03:01.3]} 6... Bb4 {[%clk 0:02:58.3]}
7. Bd3 {[%clk 0:03:01]} 7... d6 {[%clk 0:02:58.1]} 8. Bd2 {[%clk 0:03:00.4]}
8... O-O {[%clk 0:02:57.8]} 9. a3 {[%clk 0:03:00.3]} 9... Bxc3 {[%clk
0:02:57.7]} 10. Bxc3 {[%clk 0:03:01.2]} 10... Nbd7 {[%clk 0:02:58.4]} 11. O-O
{[%clk 0:03:01.2]} 11... Qc7 {[%clk 0:02:58.6]} 12. Qe2 {[%clk 0:03:00.1]} 12...
b5 {[%clk 0:02:58.8]} 13. a4 {[%clk 0:02:59.2]} 13... bxa4 {[%clk 0:02:49.7]}
14. Rxa4 {[%clk 0:03:00.1]} 14... Bb7 {[%clk 0:02:50.3]} 15. Rfa1 {[%clk
0:02:45.6]} 15... g6 {[%clk 0:02:35]} 16. Bxa6 {[%clk 0:02:42.1]} 16... Bc6
{[%clk 0:02:31]} 17. Rc4 {[%clk 0:02:08.6]} 17... Qb6 {[%clk 0:02:21.4]} 18. Rb4
{[%clk 0:02:07.5]} 18... Qd8 {[%clk 0:02:00.7]} 19. Bb5 {[%clk 0:01:56.2]} 19...
Rxa1+ {[%clk 0:01:53.9]} 20. Nxa1 {[%clk 0:01:57.1]} 20... Bxb5 {[%clk 0:01:54]}
21. Qxb5 {[%clk 0:01:52.5]} 21... Nc5 {[%clk 0:01:51.2]} 22. f3 {[%clk
0:01:49.2]} 22... Nh5 {[%clk 0:01:46.8]} 23. Bd2 {[%clk 0:01:33.7]} 23... Ne6
{[%clk 0:01:37.8]} 24. Nb3 {[%clk 0:01:30.3]} 24... Qh4 {[%clk 0:01:35.1]} 25.
g3 {[%clk 0:01:21]} 25... Nxg3 {[%clk 0:01:23.3]} 26. Be1 {[%clk 0:01:03.1]}
26... Qh5 {[%clk 0:00:53.3]} 27. Bxg3 {[%clk 0:01:00.6]} 27... Qxf3 {[%clk
0:00:53.7]} 28. Qd3 {[%clk 0:00:54.9]} 28... Qg4 {[%clk 0:00:52.6]} 29. Nd2
{[%clk 0:00:09.6]} 29... Ng5 {[%clk 0:00:40.9]} 30. Qxd6 {[%clk 0:00:05.4]}
30... Qd1+ {[%clk 0:00:33.1]} 31. Kf2 {[%clk 0:00:05.6]} 31... Nf3 {[%clk
0:00:17.5]} 32. Rb8 {[%clk 0:00:03.1]} 32... Qxd2+ {[%clk 0:00:14.1]} 33. Qxd2
{[%clk 0:00:03.4]} 33... Nxd2 {[%clk 0:00:15]} 34. Rxf8+ {[%clk 0:00:03.6]}
34... Kxf8 {[%clk 0:00:15.9]} 35. Bxe5 {[%clk 0:00:04.5]} 35... Nxe4+ {[%clk
0:00:16.3]} 36. Ke3 {[%clk 0:00:04.4]} 36... Ng5 {[%clk 0:00:16.5]} 37. b4
{[%clk 0:00:04.8]} 37... Ke8 {[%clk 0:00:15.9]} 38. c4 {[%clk 0:00:05.3]} 38...
Kd7 {[%clk 0:00:16]} 39. b5 {[%clk 0:00:05.7]} 39... Ne6 {[%clk 0:00:16]} 40.
Ke4 {[%clk 0:00:06.1]} 40... f5+ {[%clk 0:00:15.5]} 41. Kd5 {[%clk 0:00:06.5]}
41... f4 {[%clk 0:00:15.7]} 42. Ke4 {[%clk 0:00:04.3]} 42... g5 {[%clk
0:00:15.3]} 43. Bf6 {[%clk 0:00:04]} 43... h6 {[%clk 0:00:15.3]} 44. Be5 {[%clk
0:00:04.1]} 44... Nc5+ {[%clk 0:00:14.9]} 45. Kd5 {[%clk 0:00:03.8]} 45... Nd3
{[%clk 0:00:15.4]} 46. Bd4 {[%clk 0:00:03]} 46... f3 {[%clk 0:00:15.5]} 47. Ke4
{[%clk 0:00:03.1]} 47... f2 {[%clk 0:00:15.2]} 48. Bxf2 {[%clk 0:00:02.2]} 48...
Nxf2+ {[%clk 0:00:16.1]} 49. Kf5 {[%clk 0:00:02.9]} 49... Kd6 {[%clk 0:00:15.7]}
50. Kg6 {[%clk 0:00:02.7]} 50... Ng4 {[%clk 0:00:16.1]} 0-1